bitfinex/quotes_SOLUSD_20220105
["timestamp","ask_amount","ask_price","bid_price","bid_amount"]
[1641368826713,3.66181643,169.7,169.64,9.06]
[1641368826914,3.66181643,169.7,169.64,8.56]
[1641368828616,3.66181643,169.7,169.61,8.56]
[1641368828816,27.15561643,169.7,169.61,8.56]
[1641368829015,27.15561643,169.7,169.62,1.47846154]
[1641368829416,27.15561643,169.7,169.62,1.97846154]
[1641368829616,27.15561643,169.7,169.62,2.23846154]
[1641368831418,27.15561643,169.7,169.63,8.56]
[1641368831619,27.15561643,169.7,169.63,10.29846154]
[1641368831820,27.15561643,169.7,169.64,1.47846154]
[1641368832021,27.15561643,169.7,169.64,1.73846154]
[1641368832320,27.15561643,169.7,169.64,2.23846154]
[1641368832723,27.15561643,169.7,169.65,1.47846154]
[1641368832923,27.15561643,169.7,169.65,1.97846154]
[1641368833121,27.15561643,169.7,169.65,2.23846154]
[1641368833322,27.15561643,169.7,169.66,1.47846154]
[1641368833522,27.15561643,169.7,169.66,1.73846154]
[1641368834324,27.15561643,169.7,169.67,1.47846154]
[1641368834522,4.53055822,169.69,169.67,1.73846154]
[1641368835424,4.53055822,169.69,169.67,0.26]
[1641368835623,4.53055822,169.69,169.65,0.5]
[1641368835824,4.53055822,169.69,169.63,9.32]
[1641368836049,4.53055822,169.69,169.66,1.47846154]
[1641368836423,4.53055822,169.69,169.66,1.73846154]
[1641368841028,4.53055822,169.69,169.63,9.06]
[1641368841428,4.53055822,169.69,169.63,8.56]
[1641368842430,4.53055822,169.69,169.63,0.26]
[1641368842929,4.53055822,169.69,169.6,9.32]
[1641368843332,1.2562,169.68,169.61,1.47846154]
[1641368843558,1.2562,169.68,169.61,1.73846154]
[1641368843729,1.2562,169.68,169.61,2.23846154]
[1641368855176,1.2562,169.68,169.61,1.97846154]
[1641368855478,25.83901643,169.7,169.62,1.47846154]
[1641368855877,1.363,169.69,169.62,1.97846154]
[1641368856481,1.363,169.69,169.63,1.47846154]
[1641368856877,1.363,169.69,169.63,2.23846154]
[1641368858581,1.363,169.69,169.64,1.47846154]
[1641368858779,23.4938,169.7,169.64,1.47846154]
[1641368858981,23.4938,169.7,169.64,2.23846154]
[1641368859181,23.4938,169.7,169.64,10.79846154]
[1641368859383,23.4938,169.7,169.65,1.47846154]
[1641368859583,23.4938,169.7,169.65,1.73846154]
[1641368859882,23.4938,169.7,169.65,2.23846154]
[1641368860282,23.4938,169.7,169.66,1.47846154]
[1641368860483,24.41832512,169.71,169.66,1.97846154]
[1641368860682,24.41832512,169.71,169.66,2.23846154]
[1641368860882,24.41832512,169.71,169.67,1.47846154]
[1641368861085,24.41832512,169.71,169.67,1.73846154]
[1641368861284,24.41832512,169.71,169.67,2.23846154]
[1641368862084,24.41832512,169.71,169.67,0.76]
[1641368862290,49.29422512,169.71,169.67,0.76]
[1641368862485,49.29422512,169.71,169.64,9.32]
[1641368864892,49.29422512,169.71,169.65,1.47846154]
[1641368865187,49.29422512,169.71,169.65,1.73846154]
[1641368865487,49.29422512,169.71,169.65,2.23846154]
[1641368865688,49.29422512,169.71,169.65,0.76]
[1641368865887,49.29422512,169.71,169.65,0.26]
[1641368866090,49.29422512,169.71,169.66,1.47846154]
[1641368866288,49.29422512,169.71,169.64,9.32]
[1641368868891,49.29422512,169.71,169.64,0.76]
[1641368869092,49.29422512,169.71,169.64,0.5]
[1641368869295,49.29422512,169.71,169.65,1.47846154]
[1641368869493,49.29422512,169.71,169.65,0.76]
[1641368870294,49.29422512,169.71,169.63,8.56]
[1641368870492,49.29422512,169.71,169.63,9.32]
[1641368872293,49.29422512,169.71,169.64,1.47846154]
[1641368872499,49.29422512,169.71,169.64,2.23846154]
[1641368872898,49.29422512,169.71,169.65,1.47846154]
[1641368873099,49.29422512,169.71,169.65,1.73846154]
[1641368873400,49.29422512,169.71,169.65,2.23846154]
[1641368873802,49.29422512,169.71,169.65,0.76]
[1641368874000,49.29422512,169.71,169.63,9.32]
[1641368875202,49.29422512,169.71,169.64,1.47846154]
[1641368875502,49.29422512,169.71,169.64,0.76]
[1641368876110,49.29422512,169.71,169.64,0.26]
[1641368876305,49.29422512,169.71,169.65,1.47846154]
[1641368876505,49.29422512,169.71,169.65,1.73846154]
[1641368876704,49.29422512,169.71,169.65,0.76]
[1641368877327,49.29422512,169.71,169.63,9.32]
[1641368879935,49.29422512,169.71,169.64,1.47846154]
[1641368880336,49.29422512,169.71,169.64,2.23846154]
[1641368885438,49.29422512,169.71,169.65,1.47846154]
[1641368885939,49.29422512,169.71,169.65,1.97846154]
[1641368886140,49.29422512,169.71,169.65,0.5]
[1641368886538,49.29422512,169.71,169.63,1.97846154]
[1641368886739,49.29422512,169.71,169.66,1.47846154]
[1641368886938,49.29422512,169.71,169.66,1.97846154]
[1641368887338,49.29422512,169.71,169.67,1.47846154]
[1641368887539,49.29422512,169.71,169.67,1.73846154]
[1641368887739,26.1388,169.71,169.67,1.73846154]
[1641368887938,24.8759,169.71,169.68,1.47846154]
[1641368888339,24.8759,169.71,169.69,1.53187093]
[1641368888540,4.53055822,169.7,169.69,0.26]
[1641368888738,4.53055822,169.7,169.69,2.23846154]
[1641368891043,32.53055822,169.7,169.69,2.23846154]
[1641368895451,32.53055822,169.7,169.69,1.97846154]
[1641368895849,32.53055822,169.7,169.69,0.5]
[1641368896073,32.53055822,169.7,169.63,1.7426]
[1641368896248,32.53055822,169.7,169.63,1.2426]
[1641368896649,33.81525822,169.7,169.63,1.2426]
[1641368896850,33.81525822,169.7,169.63,1.5026]
[1641368897453,33.81525822,169.7,169.63,2.0026]
[1641368898352,4.53055822,169.7,169.63,3.48106154]
[1641368898552,28.47420696,169.74,169.63,3.48106154]
[1641368898752,28.47420696,169.74,169.63,10.88706154]
[1641368899354,23.1845,169.73,169.63,10.88706154]
[1641368900554,23.1845,169.73,169.63,3.48106154]
[1641368901154,23.6845,169.73,169.63,3.48106154]
[1641368901856,1.3251,169.72,169.63,3.48106154]
[1641368902959,1.3251,169.72,169.63,2.23846154]
[1641368903160,1.3251,169.72,169.63,0.76]
[1641368903360,1.3251,169.72,169.68,1.4360427]
[1641368911999,1.3251,169.72,169.68,1.6960427]
[1641368914300,1.3251,169.72,169.68,1.4360427]
[1641368917808,1.5851,169.72,169.68,0.0060427]
[1641368918110,80.214,169.72,169.68,0.0060427]
[1641368918308,80.714,169.72,169.68,0.0060427]
[1641368918509,24.0674,169.71,169.68,0.0060427]
[1641368918712,4.53055822,169.7,169.68,0.0060427]
[1641368919113,5.29055822,169.7,169.68,0.0060427]
[1641368919516,89.2888,169.69,169.68,0.0060427]
[1641368921912,89.2888,169.69,169.58,24.2992]
[1641368921913,2.60173424,169.68,169.58,24.2992]
[1641368922337,26.33539503,169.67,169.58,24.2992]
[1641368922738,26.33539503,169.67,169.58,25.77766154]
[1641368923139,1.3264,169.66,169.58,25.77766154]
[1641368931648,1.3264,169.66,169.58,2.23846154]
[1641368944165,26.33539503,169.67,169.58,2.23846154]
[1641368944663,27.61659503,169.67,169.58,2.23846154]
[1641368949893,28.11659503,169.67,169.58,2.23846154]
[1641368952793,27.61659503,169.67,169.58,2.23846154]
[1641368964101,26.33539503,169.67,169.58,2.23846154]
[1641368964502,27.68859503,169.67,169.58,2.23846154]
[1641368968408,28.18859503,169.67,169.58,2.23846154]
[1641368968608,27.68859503,169.67,169.58,2.23846154]
[1641368972816,28.18859503,169.67,169.58,2.23846154]
[1641368973015,27.68859503,169.67,169.58,2.23846154]
[1641368973218,28.18859503,169.67,169.58,2.23846154]
[1641368973417,27.68859503,169.67,169.58,2.23846154]
[1641368974117,27.68859503,169.67,169.58,1.97846154]
[1641368974518,27.94859503,169.67,169.58,1.97846154]
[1641368975419,27.94859503,169.67,169.58,2.23846154]
[1641368979120,27.68859503,169.67,169.58,2.23846154]
[1641368981221,28.18859503,169.67,169.58,2.23846154]
[1641368981424,27.68859503,169.67,169.58,2.23846154]
[1641368981624,28.18859503,169.67,169.58,2.23846154]
[1641368981825,27.68859503,169.67,169.58,2.23846154]
[1641368982747,28.18859503,169.67,169.58,2.23846154]
[1641368985950,28.18859503,169.67,169.58,1.73846154]
[1641368986952,28.18859503,169.67,169.58,2.23846154]
[1641368994964,28.18859503,169.67,169.58,0.76]
[1641368995165,28.18859503,169.67,169.56,2.0081]
[1641368995365,28.18859503,169.67,169.56,1.7481]
[1641368995566,28.18859503,169.67,169.56,3.48656154]
[1641368996065,102.51229503,169.67,169.56,3.48656154]
[1641369001209,102.51229503,169.67,169.56,12.04656154]
[1641369007314,101.15909503,169.67,169.56,12.04656154]
[1641369008114,27.24513424,169.68,169.56,12.04656154]
[1641369008316,24.6434,169.68,169.57,24.0769]
[1641369008515,1.3444,169.7,169.58,8.56]
[1641369008716,1.3444,169.7,169.59,24.1758]
[1641369008916,24.8267,169.73,169.6,9.9005]
[1641369009116,26.0599,169.73,169.61,24.42954267]
[1641369009318,23.91858357,169.76,169.62,8.56]
[1641369009519,23.9745,169.77,169.62,33.8147]
[1641369009717,23.9745,169.77,169.62,36.05316154]
[1641369009921,23.9745,169.77,169.63,1.47846154]
[1641369010118,23.9745,169.77,169.63,1.73846154]
[1641369010417,23.9745,169.77,169.64,8.56]
[1641369010618,26.35959686,169.77,169.68,98.8958154]
[1641369010819,2.38509686,169.77,169.69,30.09300864]
[1641369011018,2.38509686,169.77,169.69,31.57147018]
[1641369011219,79.0552,169.8,169.69,32.33147018]
[1641369011425,79.0552,169.8,169.7,1.47846154]
[1641369011620,79.0552,169.8,169.7,1.73846154]
[1641369011919,79.0552,169.8,169.71,1.47846154]
[1641369012122,2.58959723,169.79,169.71,1.73846154]
[1641369012346,2.58959723,169.79,169.71,2.23846154]
[1641369012519,2.58959723,169.79,169.72,1.47846154]
[1641369012920,2.58959723,169.79,169.72,2.23846154]
[1641369013122,2.58959723,169.79,169.72,7.01046154]
[1641369013522,2.58959723,169.79,169.73,1.47846154]
[1641369013921,2.58959723,169.79,169.73,2.23846154]
[1641369014121,2.58959723,169.79,169.73,0.76]
[1641369014323,2.58959723,169.79,169.73,0.26]
[1641369014522,2.58959723,169.79,169.69,30.85300864]
[1641369014926,3.86849723,169.79,169.69,30.85300864]
[1641369015524,23.7977,169.78,169.69,30.85300864]
[1641369016224,23.7977,169.78,169.69,0.5]
[1641369016423,23.7977,169.78,169.68,100.7389154]
[1641369016623,23.7977,169.78,169.68,99.3958154]
[1641369017227,23.7977,169.78,169.68,128.84204828]
[1641369017426,23.7977,169.78,169.68,127.62358674]
[1641369018427,1.2508,169.77,169.68,127.62358674]
[1641369019428,23.7977,169.78,169.68,127.62358674]
[1641369019627,25.0748,169.78,169.68,127.62358674]
[1641369020056,25.0748,169.78,169.68,129.10204828]
[1641369021357,25.0748,169.78,169.68,134.81404828]
[1641369024260,25.0748,169.78,169.68,133.33558674]
[1641369024458,25.0748,169.78,169.69,1.47846154]
[1641369024859,25.0748,169.78,169.69,0.76]
[1641369025458,25.0748,169.78,169.68,127.62358674]
[1641369027463,25.0748,169.78,169.69,1.47846154]
[1641369027766,25.0748,169.78,169.68,127.62358674]
[1641369029365,2.58959723,169.79,169.68,127.62358674]
[1641369029765,2.58959723,169.79,169.69,1.47846154]
[1641369029966,3.84909723,169.79,169.69,2.23846154]
[1641369030367,3.84909723,169.79,169.7,1.47846154]
[1641369030566,26.70039723,169.79,169.7,1.73846154]
[1641369030766,26.70039723,169.79,169.7,2.23846154]
[1641369032571,26.70039723,169.79,169.71,1.47846154]
[1641369032973,26.70039723,169.79,169.71,2.23846154]
[1641369033971,26.70039723,169.79,169.71,0.76]
[1641369034376,26.70039723,169.79,169.69,25.0991]
[1641369034774,26.70039723,169.79,169.69,26.57756154]
[1641369035977,26.70039723,169.79,169.69,25.0991]
[1641369036279,26.70039723,169.79,169.7,1.47846154]
[1641369036479,26.70039723,169.79,169.7,2.23846154]
[1641369036878,26.70039723,169.79,169.7,0.76]
[1641369037279,26.70039723,169.79,169.69,25.0991]
[1641369039080,26.70039723,169.79,169.7,1.47846154]
[1641369039479,26.70039723,169.79,169.7,0.76]
[1641369039880,26.70039723,169.79,169.7,0.26]
[1641369040079,26.70039723,169.79,169.7,1.47846154]
[1641369040479,26.70039723,169.79,169.7,0.76]
[1641369040881,26.70039723,169.79,169.7,1.73846154]
[1641369041282,26.70039723,169.79,169.7,0.76]
[1641369041481,26.70039723,169.79,169.7,2.23846154]
[1641369042383,26.70039723,169.79,169.7,0.76]
[1641369042582,26.70039723,169.79,169.7,0.5]
[1641369042783,26.70039723,169.79,169.69,25.0991]
[1641369045386,26.70039723,169.79,169.7,1.47846154]
[1641369045586,26.70039723,169.79,169.7,1.73846154]
[1641369045889,26.70039723,169.79,169.71,1.47846154]
[1641369046113,26.70039723,169.79,169.71,1.73846154]
[1641369046286,26.70039723,169.79,169.71,2.23846154]
[1641369046887,26.70039723,169.79,169.71,1.97846154]
[1641369047089,26.70039723,169.79,169.71,0.5]
[1641369047492,26.70039723,169.79,169.69,24.8391]
[1641369048494,26.70039723,169.79,169.69,25.0991]
[1641369048992,26.70039723,169.79,169.7,1.47846154]
[1641369049496,26.70039723,169.79,169.7,1.97846154]
[1641369050996,26.70039723,169.79,169.7,2.23846154]
[1641369051896,26.70039723,169.79,169.7,0.76]
[1641369052096,26.70039723,169.79,169.7,0.5]
[1641369052300,26.70039723,169.79,169.69,25.0991]
[1641369052697,26.70039723,169.79,169.69,26.57756154]
[1641369057827,26.70039723,169.79,169.69,26.31756154]
[1641369059030,26.70039723,169.79,169.69,26.57756154]
[1641369059229,26.70039723,169.79,169.69,25.0991]
[1641369060433,26.70039723,169.79,169.69,0.5]
[1641369060835,26.70039723,169.79,169.68,130.96776184]
[1641369061636,26.96039723,169.79,169.68,130.96776184]
[1641369062333,26.96039723,169.79,169.68,99.3958154]
[1641369064138,26.96039723,169.79,169.68,99.6558154]
[1641369067540,26.70039723,169.79,169.68,99.6558154]
[1641369068141,26.70039723,169.79,169.68,101.13427694]
[1641369069546,26.70039723,169.79,169.68,99.6558154]
[1641369070145,26.70039723,169.79,169.68,101.13427694]
[1641369074774,26.70039723,169.79,169.68,100.87427694]
[1641369075675,26.96039723,169.79,169.68,100.87427694]
[1641369076075,26.96039723,169.79,169.68,101.13427694]
[1641369076276,26.96039723,169.79,169.68,99.6558154]
[1641369076576,8.56,169.78,169.68,0.5]
[1641369076978,8.82,169.78,169.64,1.7923]
[1641369077180,8.82,169.78,169.64,1.2923]
[1641369077377,23.1307,169.77,169.64,1.2923]
[1641369077577,23.3907,169.77,169.63,1.47846154]
[1641369077782,9.9112,169.76,169.63,1.73846154]
[1641369077977,99.3475,169.75,169.63,1.73846154]
[1641369078276,107.9075,169.75,169.63,1.73846154]
[1641369078476,30.16360127,169.74,169.63,2.23846154]
[1641369078679,2.7828622,169.72,169.63,2.23846154]
[1641369078877,1.2863,169.71,169.63,1.97846154]
[1641369080282,1.2863,169.71,169.63,2.23846154]
[1641369090293,1.2863,169.71,169.63,1.97846154]
[1641369092597,1.2863,169.71,169.63,2.23846154]
[1641369105641,2.7828622,169.72,169.63,2.23846154]
[1641369106240,4.1475622,169.72,169.63,2.23846154]
[1641369108149,23.2225,169.71,169.63,2.23846154]
[1641369111848,23.7225,169.71,169.63,1.97846154]
[1641369112647,1.2875,169.7,169.63,1.97846154]
[1641369112947,1.2875,169.7,169.63,1.47846154]
[1641369113155,1.2875,169.7,169.63,1.73846154]
[1641369113349,1.2875,169.7,169.63,0.26]
[1641369113550,1.2875,169.7,169.61,1.73846154]
[1641369113750,1.2875,169.7,169.63,1.47846154]
[1641369113949,1.7875,169.7,169.63,1.47846154]
[1641369114151,1.7875,169.7,169.63,1.73846154]
[1641369114350,1.7875,169.7,169.63,2.23846154]
[1641369114649,1.2875,169.7,169.63,2.23846154]
[1641369115852,1.2875,169.7,169.63,1.97846154]
[1641369116353,1.7875,169.7,169.63,1.97846154]
[1641369117050,1.7875,169.7,169.63,2.23846154]
[1641369118079,1.2875,169.7,169.63,2.23846154]
[1641369118384,1.7875,169.7,169.63,2.23846154]
[1641369119977,1.7875,169.7,169.63,0.76]
[1641369120179,1.7875,169.7,169.6,25.3971]
[1641369120578,1.7875,169.7,169.61,1.47846154]
[1641369120982,1.2875,169.7,169.61,2.23846154]
[1641369121382,1.2875,169.7,169.62,1.47846154]
[1641369121582,1.2875,169.7,169.62,1.73846154]
[1641369121782,1.2875,169.7,169.62,2.23846154]
[1641369134190,1.2875,169.7,169.63,24.20065406]
[1641369134488,1.2875,169.7,169.63,24.96065406]
[1641369135691,1.2875,169.7,169.63,0.5]
[1641369135892,1.2875,169.7,169.62,1.97846154]
[1641369136091,1.2875,169.7,169.62,1.47846154]
[1641369136293,1.2875,169.7,169.62,1.97846154]
[1641369137093,1.2875,169.7,169.62,2.23846154]
[1641369140899,1.7875,169.7,169.62,2.23846154]
[1641369141100,1.2875,169.7,169.62,2.23846154]
[1641369141400,1.7875,169.7,169.62,2.23846154]
[1641369141602,1.2875,169.7,169.62,2.23846154]
[1641369141999,1.7875,169.7,169.62,2.23846154]
[1641369142200,1.2875,169.7,169.62,2.23846154]
[1641369143000,1.7875,169.7,169.62,2.23846154]
[1641369143801,1.2875,169.7,169.62,2.23846154]
[1641369144203,1.2875,169.7,169.62,1.97846154]
[1641369144401,1.2875,169.7,169.62,0.5]
[1641369144600,1.7875,169.7,169.62,0.5]
[1641369144803,1.7875,169.7,169.59,1.97846154]
[1641369145001,1.7875,169.7,169.59,1.47846154]
[1641369145201,75.4921,169.7,169.59,1.97846154]
[1641369147005,75.4921,169.7,169.59,2.23846154]
[1641369151740,75.4921,169.7,169.59,1.97846154]
[1641369152137,84.0521,169.7,169.59,1.97846154]
[1641369153037,84.0521,169.7,169.59,2.23846154]
[1641369154741,84.0521,169.7,169.59,1.97846154]
[1641369156042,84.0521,169.7,169.59,2.23846154]
[1641369158747,84.0521,169.7,169.59,0.76]
[1641369158946,84.0521,169.7,169.58,2.061]
[1641369159147,84.0521,169.7,169.58,1.561]
[1641369159348,84.0521,169.7,169.58,2.061]
[1641369159749,84.0521,169.7,169.58,3.53946154]
[1641369160148,83.5521,169.7,169.58,3.53946154]
[1641369160348,84.0521,169.7,169.58,3.53946154]
[1641369169659,83.5521,169.7,169.58,3.53946154]
[1641369169886,84.0521,169.7,169.58,3.53946154]
[1641369170262,83.5521,169.7,169.58,3.53946154]
[1641369175479,83.5521,169.7,169.58,3.27946154]
[1641369175679,83.8121,169.7,169.58,3.27946154]
[1641369176979,83.8121,169.7,169.58,3.53946154]
[1641369177179,83.8121,169.7,169.58,2.061]
[1641369177400,83.5521,169.7,169.58,2.061]
[1641369180104,83.0521,169.7,169.58,2.061]
[1641369180304,83.0521,169.7,169.58,3.53946154]
[1641369184409,74.4921,169.7,169.58,3.53946154]
[1641369188117,73.9921,169.7,169.58,3.53946154]
[1641369188519,73.7046,169.7,169.58,3.53946154]
[1641369189142,1.2668,169.69,169.58,3.53946154]
[1641369193446,1.2668,169.69,169.58,3.27946154]
[1641369193649,1.2668,169.69,169.58,1.801]
[1641369193847,1.7668,169.69,169.58,1.801]
[1641369195048,1.7668,169.69,169.58,2.061]
[1641369195848,1.7668,169.69,169.58,3.53946154]
[1641369197053,1.2668,169.69,169.58,3.53946154]
[1641369197254,1.7668,169.69,169.58,3.53946154]
[1641369200258,1.2668,169.69,169.58,3.53946154]
[1641369200460,1.7668,169.69,169.58,3.53946154]
[1641369200662,1.2668,169.69,169.58,3.53946154]
[1641369200858,1.7668,169.69,169.58,3.53946154]
[1641369201661,1.2668,169.69,169.58,3.53946154]
[1641369216794,1.2668,169.69,169.58,12.09946154]
[1641369220197,1.2668,169.69,169.58,3.27946154]
[1641369221499,1.2668,169.69,169.58,3.53946154]
[1641369226301,1.2668,169.69,169.58,12.09946154]
[1641369241854,1.2668,169.69,169.58,132.98409654]
[1641369242052,30.16360127,169.74,169.58,132.98409654]
[1641369242352,78.4938306,169.79,169.63,0.31702926]
[1641369242552,76.8361,169.79,169.64,8.56]
[1641369242755,76.8361,169.79,169.64,10.03846154]
[1641369242756,23.0598,169.78,169.64,10.03846154]
[1641369242952,2.54897835,169.77,169.65,1.47846154]
[1641369243151,2.54897835,169.77,169.65,10.03846154]
[1641369243352,24.1453726,169.76,169.66,1.3638]
[1641369243555,24.1453726,169.76,169.66,3.10226154]
[1641369243755,24.1453726,169.76,169.67,1.47846154]
[1641369243953,24.1453726,169.76,169.67,1.97846154]
[1641369244154,24.1453726,169.76,169.67,2.23846154]
[1641369244354,24.1453726,169.76,169.68,1.47846154]
[1641369244553,24.1453726,169.76,169.68,1.73846154]
[1641369244754,24.1453726,169.76,169.68,2.23846154]
[1641369245160,24.1453726,169.76,169.69,1.47846154]
[1641369245354,24.1453726,169.76,169.69,1.97846154]
[1641369245555,24.1453726,169.76,169.69,2.23846154]
[1641369245757,24.1453726,169.76,169.7,1.47846154]
[1641369245955,24.1453726,169.76,169.7,1.97846154]
[1641369246156,24.1453726,169.76,169.7,2.23846154]
[1641369246356,24.1453726,169.76,169.71,1.47846154]
[1641369246656,24.1453726,169.76,169.71,1.73846154]
[1641369246863,24.1453726,169.76,169.71,2.23846154]
[1641369247159,24.1453726,169.76,169.72,1.47846154]
[1641369247360,24.1453726,169.76,169.72,1.97846154]
[1641369247560,24.1453726,169.76,169.72,0.76]
[1641369247763,24.8647,169.75,169.72,0.76]
[1641369248160,24.8647,169.75,169.67,2.23846154]
[1641369248365,1.3374,169.74,169.67,2.23846154]
[1641369250469,24.8647,169.75,169.67,2.23846154]
[1641369250666,24.8647,169.75,169.68,1.47846154]
[1641369250866,24.8647,169.75,169.68,1.97846154]
[1641369251065,24.8647,169.75,169.68,2.23846154]
[1641369254776,24.8647,169.75,169.69,1.47846154]
[1641369254980,24.8647,169.75,169.69,1.73846154]
[1641369255177,24.8647,169.75,169.69,2.23846154]
[1641369256177,24.8647,169.75,169.69,0.76]
[1641369256378,24.8647,169.75,169.66,25.1821]
[1641369256580,24.8647,169.75,169.66,33.7421]
[1641369273723,24.8647,169.75,169.67,1.47846154]
[1641369273922,24.8647,169.75,169.67,1.97846154]
[1641369274122,24.8647,169.75,169.67,2.23846154]
[1641369274425,24.8647,169.75,169.68,1.47846154]
[1641369274622,24.8647,169.75,169.68,1.73846154]
[1641369274824,24.8647,169.75,169.68,2.23846154]
[1641369278124,24.8647,169.75,169.68,1.97846154]
[1641369279148,24.8647,169.75,169.69,1.47846154]
[1641369279347,24.8647,169.75,169.69,1.97846154]
[1641369279551,24.8647,169.75,169.69,2.23846154]
[1641369279750,24.8647,169.75,169.7,1.47846154]
[1641369279948,24.8647,169.75,169.7,1.97846154]
[1641369280149,24.8647,169.75,169.7,2.23846154]
[1641369280350,24.8647,169.75,169.71,1.47846154]
[1641369280551,24.8647,169.75,169.71,1.73846154]
[1641369280748,24.8647,169.75,169.71,2.23846154]
[1641369280949,24.8647,169.75,169.72,1.47846154]
[1641369281349,24.8647,169.75,169.72,2.23846154]
[1641369281548,24.8647,169.75,169.72,0.76]
[1641369281951,24.8647,169.75,169.69,2.23846154]
[1641369282251,24.8647,169.75,169.69,0.26]
[1641369282449,24.8647,169.75,169.7,1.47846154]
[1641369282849,24.8647,169.75,169.7,2.23846154]
[1641369283451,24.8647,169.75,169.71,1.47846154]
[1641369283853,24.8647,169.75,169.71,1.97846154]
[1641369284052,24.8647,169.75,169.71,2.23846154]
[1641369287759,24.8647,169.75,169.72,1.47846154]
[1641369287959,24.8647,169.75,169.72,1.97846154]
[1641369288158,24.8647,169.75,169.72,2.23846154]
[1641369288658,4.53055822,169.74,169.72,2.23846154]
[1641369291261,4.53055822,169.74,169.72,1.97846154]
[1641369292660,4.53055822,169.74,169.72,2.23846154]
[1641369295866,4.53055822,169.74,169.67,1.47846154]
[1641369296064,22.7753,169.73,169.63,7.45102828]
[1641369296264,24.1064,169.73,169.64,1.47846154]
[1641369296464,24.1064,169.73,169.62,8.871]
[1641369297464,24.1064,169.73,169.62,9.371]
[1641369298067,24.1064,169.73,169.62,9.631]
[1641369299867,24.1064,169.73,169.63,1.2755]
[1641369300068,24.1064,169.73,169.63,1.5355]
[1641369300268,24.1064,169.73,169.63,2.0355]
[1641369300467,24.1064,169.73,169.63,24.5716]
[1641369300671,24.1064,169.73,169.63,2.0355]
[1641369304570,24.1064,169.73,169.63,0.76]
[1641369304770,24.1064,169.73,169.62,11.10946154]
[1641369304971,24.1064,169.73,169.62,9.32]
[1641369305774,24.1064,169.73,169.62,0.76]
[1641369305971,2.47077869,169.71,169.59,33.5471]
[1641369306172,26.57777869,169.71,169.59,33.5471]
[1641369306772,27.10741445,169.69,169.6,1.3043]
[1641369307073,27.10741445,169.69,169.6,3.54276154]
[1641369307472,27.10741445,169.69,169.6,2.0643]
[1641369308171,24.7698,169.68,169.6,2.0643]
[1641369308772,26.0153,169.68,169.6,2.0643]
[1641369310877,26.0153,169.68,169.6,1.8043]
[1641369311675,26.0153,169.68,169.61,8.56]
[1641369311876,26.0153,169.68,169.61,9.06]
[1641369312275,26.0153,169.68,169.61,9.32]
[1641369314005,1.2455,169.68,169.61,9.32]
[1641369314208,27.10741445,169.69,169.62,1.47846154]
[1641369314407,27.10741445,169.69,169.62,0.5]
[1641369314607,27.10741445,169.69,169.62,0.76]
[1641369315208,27.10741445,169.69,169.61,9.32]
[1641369316708,27.10741445,169.69,169.61,10.79846154]
[1641369316909,27.10741445,169.69,169.61,9.32]
[1641369318010,1.3035,169.7,169.61,9.32]
[1641369318214,1.3035,169.7,169.62,1.47846154]
[1641369318408,1.3216,169.76,169.63,8.56]
[1641369318611,1.2766,169.75,169.64,24.7617]
[1641369318811,1.2766,169.75,169.65,9.8516]
[1641369319010,30.2254012,169.74,169.65,11.59006154]
[1641369319213,30.2254012,169.74,169.65,12.09006154]
[1641369319410,33.21603598,169.74,169.66,1.47846154]
[1641369319711,33.21603598,169.74,169.66,1.73846154]
[1641369319909,33.21603598,169.74,169.66,2.23846154]
[1641369323117,33.21603598,169.74,169.67,1.47846154]
[1641369323417,33.21603598,169.74,169.67,1.97846154]
[1641369323653,33.21603598,169.74,169.67,2.23846154]
[1641369323820,33.21603598,169.74,169.68,1.47846154]
[1641369324018,33.21603598,169.74,169.68,1.73846154]
[1641369324217,33.21603598,169.74,169.68,2.23846154]
[1641369324419,33.21603598,169.74,169.68,10.79846154]
[1641369324618,33.21603598,169.74,169.69,1.47846154]
[1641369325019,33.21603598,169.74,169.69,2.23846154]
[1641369325420,33.21603598,169.74,169.7,1.47846154]
[1641369325620,33.21603598,169.74,169.7,1.73846154]
[1641369325820,33.21603598,169.74,169.7,2.23846154]
[1641369326220,33.21603598,169.74,169.71,1.47846154]
[1641369326422,33.21603598,169.74,169.71,1.97846154]
[1641369326423,4.53055822,169.73,169.71,1.97846154]
[1641369326620,4.53055822,169.73,169.71,2.23846154]
[1641369326821,4.53055822,169.73,169.72,1.47846154]